fUST/lending_fUST_20251206
["ID","MTS","AMOUNT","RATE_DAILY","PERIOD"]
[396493992,1765003696913,-251.77258364,0.00036499,30]
[396493993,1765003696938,-3036.89045428,0.00036499,30]
[396493994,1765003696961,-627.291652,0.00036499,120]
[396493995,1765003696983,-162.7261131,0.00036499,120]
[396493996,1765003697006,-586.76470428,0.00036499,120]
[396493997,1765003697030,-3520.58397321,0.00036499,30]
[396493998,1765003697053,-1010.78588067,0.00036499,30]
[396493999,1765003697078,-706.84678169,0.00036499,30]
[396494000,1765003697101,-494.67821937,0.00036499,60]
[396494001,1765003697126,-957.6615202,0.00036499,60]
[396494002,1765003697148,-155.27442431,0.00036499,31]
[396494003,1765003697172,-338.3231406,0.00036499,30]
[396494004,1765003697196,-209.81652327,0.00036499,120]
[396494005,1765003697218,-733.25948298,0.00036499,120]
[396494006,1765003697242,-968.0809318,0.00036499,30]
[396494007,1765003697265,-509.86983132,0.00036499,120]
[396494008,1765003697288,-2517.94645579,0.00036499,30]
[396494009,1765003697312,-496.87402789,0.00036499,30]
[396494010,1765003697336,-157.08510256,0.00036499,30]
[396494011,1765003697359,-2180.61228421,0.00036499,20]
[396494012,1765003697382,-1000.06198982,0.00036499,120]
[396494013,1765003697405,-418.95231624,0.00036499,31]
[396494014,1765003697430,-2400.0,0.00036499,30]
[396494015,1765003697455,-500.0,0.00036499,30]
[396494016,1765003697479,-500.0,0.00036499,30]
[396494017,1765003697501,-500.0,0.00036499,30]
[396494018,1765003697524,-205.963055,0.00036499,40]
[396494019,1765003697548,-205.963055,0.00036499,40]
[396494020,1765003697576,-200.0,0.00036499,30]
[396494021,1765003697609,-1249.26552357,0.00036499,61]
[396494022,1765003697635,-34244.40262856,0.00036499,20]
[396494023,1765003703425,704.0,0.00036499,20]
[396494024,1765003705642,1068.4,0.00036499,20]
[396494025,1765003706561,5000.0,0.0001056,2]
[396494026,1765003729436,5000.0,0.0001056,2]
[396494027,1765003744489,250.0,0.00013094,3]
[396494028,1765003746075,-169.0,0.00010752,2]
[396494029,1765003746099,-96.39730965,0.00010753,2]
[396494030,1765003748799,-130.93365135,0.00010753,2]
[396494031,1765003748824,-82.43865585,0.00010753,2]
[396494032,1765003750420,-240.14136907,0.00010753,2]
[396494033,1765003751730,5000.0,0.0001056,2]
[396494034,1765003752605,-177.41997508,0.00010753,2]
[396494035,1765003752634,-197.95717812,0.00010753,2]
[396494036,1765003755261,-158.2235184,0.00010753,2]
[396494037,1765003757944,-143.81930348,0.00010753,2]
[396494038,1765003757969,-31.22912146,0.00010753,2]
[396494039,1765003759636,-152.02194863,0.00010753,2]
[396494040,1765003762988,-231.82336119,0.00010753,2]
[396494041,1765003764640,-84.92556872,0.00010753,2]
[396494042,1765003764662,-90.69398205,0.00010753,2]
[396494043,1765003766169,-106.59471813,0.00010753,2]
[396494044,1765003766193,-79.20521677,0.00010753,2]
[396494045,1765003769407,-371.58161176,0.00010753,2]
[396494046,1765003771105,-88.55505571,0.00010753,2]
[396494047,1765003771128,-222.23211127,0.00010753,2]
[396494048,1765003774262,-182.7504816,0.00010753,2]
[396494049,1765003774900,5000.0,0.0001056,2]
[396494050,1765003779184,-95.01740713,0.00010753,2]
[396494051,1765003779208,-105.92348335,0.00010753,2]
[396494052,1765003780829,-247.0,0.00010753,2]
[396494053,1765003782979,-147.07651665,0.00010753,2]
[396494054,1765003783003,-62.60138072,0.00010753,2]
[396494055,1765003797778,3798.1525623,0.0001056,2]
[396494056,1765003806157,865.11926034,0.0001056,2]
[396494057,1765003808705,4798.63101038,9.863e-05,2]
[396494058,1765003819352,-4798.64101038,9.863e-05,2]
[396494059,1765003819801,-402.72797924,9.863e-05,2]
[396494060,1765003820983,-231.0,9.863e-05,2]
[396494068,1765003832604,-608.43660642,0.00010752,2]
[396494069,1765003832613,-201.3348851,0.00010752,2]
[396494070,1765003832623,-500.0,0.00010752,2]
[396494071,1765003832632,-500.0,0.00010752,2]
[396494072,1765003832642,-500.0,0.00010752,2]
[396494073,1765003832651,-500.0,0.00010752,2]
[396494074,1765003832661,-500.0,0.00010752,2]
[396494075,1765003832670,-500.0,0.00010752,2]
[396494076,1765003832680,-500.0,0.00010752,2]
[396494077,1765003832689,-500.0,0.00010752,2]
[396494078,1765003832699,-500.0,0.00010752,2]
[396494079,1765003832708,-500.0,0.00010752,2]
[396494080,1765003832718,-500.0,0.00010752,2]
[396494081,1765003832728,-359.33125963,0.00010752,2]
[396494082,1765003832737,-250.0,0.00010752,2]
[396494083,1765003832746,-300.0,0.00010752,2]
[396494084,1765003832755,-300.0,0.00010752,2]
[396494085,1765003832765,-1200.0,0.00010752,2]
[396494086,1765003832774,-50000.0,0.00010753,2]
[396494087,1765003832783,-1200.0,0.00010753,2]
[396494088,1765003832793,-116687.32775397,0.00010754,2]
[396494089,1765003832802,-190.82670953,0.00010802,2]
[396494090,1765003832811,-4042.92747744,0.00010847,2]
[396494091,1765003832821,-128618.07805812,0.00010854,2]
[396494092,1765003832833,-1474.28135078,0.00010854,2]
[396494124,1765003838720,-500.0,0.00010752,2]
[396494126,1765003838729,-500.0,0.00010752,2]
[396494128,1765003838739,-2903.96095388,0.00010854,2]
[396494130,1765003838749,-10000.0,0.00010858,2]
[396494132,1765003838758,-170.165,0.00010948,2]
[396494134,1765003838768,-250.0,0.0001095,2]
[396494136,1765003838777,-500.0,0.00010958,2]
[396494139,1765003838787,-500.0,0.00010958,2]
[396494142,1765003838796,-500.0,0.00010958,2]
[396494145,1765003838806,-500.0,0.00010958,2]
[396494147,1765003838816,-500.0,0.00010958,2]
[396494149,1765003838826,-500.0,0.00010958,2]
[396494150,1765003838836,-500.0,0.00010958,2]
[396494151,1765003838846,-500.0,0.00010958,2]
[396494152,1765003838856,-500.0,0.00010958,2]
[396494153,1765003838866,-500.0,0.00010958,2]
[396494154,1765003838875,-242.04976035,0.00010958,2]
[396494155,1765003838887,-578.28,0.00010958,2]
[396494156,1765003838897,-500.0,0.00010958,2]
[396494157,1765003838907,-500.0,0.00010958,2]
[396494158,1765003838916,-500.0,0.00010958,2]
[396494159,1765003839107,-500.0,0.00010958,2]
[396494160,1765003839121,-500.0,0.00010958,2]
[396494161,1765003839131,-500.0,0.00010958,2]
[396494162,1765003839140,-298.30608342,0.00010958,2]
[396494163,1765003839151,-500.0,0.00010958,2]
[396494164,1765003839165,-500.0,0.00010958,2]
[396494165,1765003839175,-792.36,0.00010958,2]
[396494166,1765003839184,-500.0,0.00010958,2]
[396494167,1765003839195,-500.0,0.00010958,2]
[396494168,1765003839204,-500.0,0.00010958,2]
[396494169,1765003839213,-500.0,0.00010958,2]
[396494170,1765003839222,-1455.89,0.00010958,2]
[396494171,1765003839232,-743.13,0.00010958,2]
[396494172,1765003839241,-93.39318942,0.00010958,2]
[396494173,1765003839255,-406.60681058,0.00010958,2]
[396494174,1765003839264,-500.0,0.00010958,2]
[396494175,1765003839273,-500.0,0.00010958,2]
[396494176,1765003839283,-500.0,0.00010958,2]
[396494177,1765003839292,-500.0,0.00010958,2]
[396494178,1765003839301,-500.0,0.00010958,2]
[396494179,1765003839310,-500.0,0.00010958,2]
[396494180,1765003839320,-500.0,0.00010958,2]
[396494181,1765003839329,-500.0,0.00010958,2]
[396494182,1765003839338,-500.0,0.00010958,2]
[396494183,1765003839347,-500.0,0.00010958,2]
[396494184,1765003839356,-500.0,0.00010958,2]
[396494185,1765003839366,-500.0,0.00010958,2]
[396494186,1765003839375,-500.0,0.00010958,2]
[396494187,1765003839384,-500.0,0.00010958,2]
[396494188,1765003839394,-500.0,0.00010958,2]
[396494189,1765003839404,-500.0,0.00010958,2]
[396494190,1765003839415,-169.730852,0.00010958,2]
[396494191,1765003839424,-500.0,0.00010958,2]
[396494192,1765003839433,-500.0,0.00010958,2]
[396494193,1765003839442,-500.0,0.00010958,2]
[396494194,1765003839452,-500.0,0.00010958,2]
[396494195,1765003839461,-529.46412703,0.00010958,2]
[396494196,1765003839470,-500.0,0.00010958,2]
[396494197,1765003839479,-500.0,0.00010958,2]
[396494198,1765003839488,-500.0,0.00010958,2]
[396494199,1765003839497,-5057.756962,0.00010958,2]
[396494200,1765003839506,-500.0,0.00010958,2]
[396494201,1765003839515,-500.0,0.00010958,2]
[396494202,1765003839525,-500.0,0.00010958,2]
[396494203,1765003839534,-500.0,0.00010958,2]
[396494204,1765003839543,-500.0,0.00010958,2]
[396494205,1765003839554,-1692.71,0.00010958,2]
[396494206,1765003839563,-510.95,0.00010958,2]
[396494207,1765003839572,-500.0,0.00010958,2]
[396494208,1765003839581,-524.59,0.00010958,2]
[396494209,1765003839591,-500.0,0.00010958,2]
[396494210,1765003839600,-500.0,0.00010958,2]
[396494211,1765003839609,-500.0,0.00010958,2]
[396494212,1765003839618,-580.08211556,0.00010958,2]
[396494213,1765003839628,-500.0,0.00010958,2]
[396494214,1765003839638,-500.0,0.00010958,2]
[396494215,1765003839649,-500.0,0.00010958,2]
[396494216,1765003839660,-2016.02,0.00010958,2]
[396494217,1765003839670,-968.33,0.00010958,2]
[396494218,1765003839680,-500.0,0.00010958,2]
[396494219,1765003839690,-500.0,0.00010958,2]
[396494220,1765003839700,-500.0,0.00010958,2]
[396494221,1765003839709,-532.65,0.00010958,2]
[396494222,1765003839719,-728.49,0.00010958,2]
[396494223,1765003839728,-500.0,0.00010958,2]
[396494224,1765003839738,-500.0,0.00010958,2]
[396494225,1765003839747,-500.0,0.00010958,2]
[396494226,1765003839756,-500.0,0.00010958,2]
[396494227,1765003839765,-500.0,0.00010958,2]
[396494228,1765003839775,-500.0,0.00010958,2]
[396494229,1765003839784,-500.0,0.00010958,2]
[396494230,1765003839793,-500.0,0.00010958,2]
[396494231,1765003839804,-500.0,0.00010958,2]
[396494232,1765003839813,-500.0,0.00010958,2]
[396494233,1765003839823,-500.0,0.00010958,2]
[396494234,1765003839832,-500.0,0.00010958,2]
[396494235,1765003839842,-500.0,0.00010958,2]
[396494236,1765003839853,-500.0,0.00010958,2]
[396494237,1765003839863,-500.0,0.00010958,2]
[396494238,1765003839873,-500.0,0.00010958,2]
[396494239,1765003839883,-500.0,0.00010958,2]
[396494240,1765003839893,-500.0,0.00010958,2]
[396494241,1765003839904,-1252.95,0.00010958,2]
[396494242,1765003839915,-500.0,0.00010958,2]
[396494243,1765003839924,-500.0,0.00010958,2]
[396494244,1765003839934,-500.0,0.00010958,2]
[396494245,1765003839944,-272.50738809,0.00010958,2]
[396494246,1765003839961,-227.49261191,0.00010958,2]
[396494247,1765003839970,-1272.4,0.00010958,2]
[396494248,1765003839980,-500.0,0.00010958,2]
[396494249,1765003839989,-500.0,0.00010958,2]
[396494250,1765003839999,-500.0,0.00010958,2]
[396494251,1765003840008,-1091.08,0.00010958,2]
[396494252,1765003840018,-500.0,0.00010958,2]
[396494253,1765003840028,-500.0,0.00010958,2]
[396494254,1765003840038,-500.0,0.00010958,2]
[396494255,1765003840047,-405.52522868,0.00010958,2]
[396494256,1765003840057,-500.0,0.00010958,2]
[396494257,1765003840066,-109.12043606,0.00010958,2]
[396494258,1765003840082,-390.87956394,0.00010958,2]
[396494259,1765003840092,-500.0,0.00010958,2]
[396494260,1765003840101,-298.73141821,0.00010958,2]
[396494262,1765003840133,-201.26858179,0.00010958,2]
[396494263,1765003840142,-500.0,0.00010958,2]
[396494264,1765003840154,-500.0,0.00010958,2]
[396494265,1765003840164,-500.0,0.00010958,2]
[396494266,1765003840174,-500.0,0.00010958,2]
[396494267,1765003840183,-500.0,0.00010958,2]
[396494268,1765003840193,-500.0,0.00010958,2]
[396494269,1765003840203,-500.0,0.00010958,2]
[396494270,1765003840213,-500.0,0.00010958,2]
[396494271,1765003840223,-500.0,0.00010958,2]
[396494272,1765003840234,-500.0,0.00010958,2]
[396494273,1765003840244,-500.0,0.00010958,2]
[396494274,1765003840254,-718.32,0.00010958,2]
[396494275,1765003840263,-500.0,0.00010958,2]
[396494276,1765003840273,-704.62,0.00010958,2]
[396494277,1765003840282,-500.0,0.00010958,2]
[396494278,1765003840292,-885.49,0.00010958,2]
[396494279,1765003840302,-679.72,0.00010958,2]
[396494280,1765003840311,-500.0,0.00010958,2]
[396494282,1765003840320,-500.0,0.00010958,2]
[396494283,1765003840330,-500.0,0.00010958,2]
[396494284,1765003840339,-585.45,0.00010958,2]
[396494285,1765003840348,-509.46024604,0.00010958,2]
[396494286,1765003840358,-500.0,0.00010958,2]
[396494287,1765003840367,-500.0,0.00010958,2]
[396494288,1765003840376,-516.38775066,0.00010958,2]
[396494289,1765003840386,-502.36,0.00010958,2]
[396494290,1765003840395,-500.0,0.00010958,2]
[396494291,1765003840404,-500.0,0.00010958,2]
[396494292,1765003840413,-883.77,0.00010958,2]
[396494293,1765003840422,-500.0,0.00010958,2]
[396494294,1765003840432,-500.0,0.00010958,2]
[396494295,1765003840447,-1773.56,0.00010958,2]
[396494296,1765003840457,-500.0,0.00010958,2]
[396494297,1765003840469,-500.0,0.00010958,2]
[396494298,1765003840478,-1495.63,0.00010958,2]
[396494299,1765003840488,-500.0,0.00010958,2]
[396494300,1765003840501,-500.0,0.00010958,2]
[396494301,1765003840511,-500.0,0.00010958,2]
[396494302,1765003840520,-500.0,0.00010958,2]
[396494303,1765003840529,-501.22590579,0.00010958,2]
[396494304,1765003840539,-500.0,0.00010958,2]
[396494305,1765003840548,-500.0,0.00010958,2]
[396494306,1765003840558,-500.0,0.00010958,2]
[396494307,1765003840567,-500.0,0.00010958,2]
[396494308,1765003840576,-500.0,0.00010958,2]
[396494309,1765003840586,-252.18799329,0.00010958,2]
[396494310,1765003840596,-500.0,0.00010958,2]
[396494311,1765003840605,-500.0,0.00010958,2]
[396494312,1765003840615,-500.0,0.00010958,2]
[396494313,1765003840625,-500.0,0.00010958,2]
[396494314,1765003840635,-500.0,0.00010958,2]
[396494315,1765003840644,-500.0,0.00010958,2]
[396494316,1765003840654,-1183.46,0.00010958,2]
[396494317,1765003840663,-500.0,0.00010958,2]
[396494318,1765003840673,-500.0,0.00010958,2]
[396494319,1765003840683,-500.0,0.00010958,2]
[396494320,1765003840693,-500.0,0.00010958,2]
[396494321,1765003840704,-500.0,0.00010958,2]
[396494322,1765003840715,-500.0,0.00010958,2]
[396494323,1765003840725,-500.0,0.00010958,2]
[396494324,1765003840735,-1792.37,0.00010958,2]
[396494325,1765003840744,-500.0,0.00010958,2]
[396494326,1765003840754,-500.0,0.00010958,2]
[396494327,1765003840763,-500.0,0.00010958,2]
[396494328,1765003840773,-500.0,0.00010958,2]
[396494329,1765003840783,-500.0,0.00010958,2]
[396494330,1765003840795,-500.0,0.00010958,2]
[396494331,1765003840804,-500.0,0.00010958,2]
[396494332,1765003840813,-634.2,0.00010958,2]
[396494333,1765003840823,-500.0,0.00010958,2]
[396494334,1765003840832,-500.0,0.00010958,2]
[396494335,1765003840841,-500.0,0.00010958,2]
[396494336,1765003840851,-317.4253197,0.00010958,2]
[396494338,1765003840860,-500.0,0.00010958,2]
[396494339,1765003840869,-647.62754153,0.00010958,2]
[396494340,1765003840878,-500.0,0.00010958,2]
[396494341,1765003840888,-500.0,0.00010958,2]
[396494342,1765003840897,-500.0,0.00010958,2]
[396494343,1765003840906,-500.0,0.00010958,2]
[396494344,1765003840916,-500.0,0.00010958,2]
[396494345,1765003840926,-500.0,0.00010958,2]
[396494346,1765003840935,-500.0,0.00010958,2]
[396494347,1765003840944,-500.0,0.00010958,2]
[396494348,1765003840954,-603.4,0.00010958,2]
[396494349,1765003840965,-500.0,0.00010958,2]
[396494350,1765003840974,-500.0,0.00010958,2]
[396494351,1765003840984,-2144.94,0.00010958,2]
[396494352,1765003840994,-500.0,0.00010958,2]
[396494353,1765003841003,-500.0,0.00010958,2]
[396494354,1765003841012,-500.0,0.00010958,2]
[396494355,1765003841021,-500.0,0.00010958,2]
[396494356,1765003841030,-1469.08,0.00010958,2]
[396494357,1765003841040,-1656.3,0.00010958,2]
[396494358,1765003841049,-500.0,0.00010958,2]
[396494359,1765003841058,-500.0,0.00010958,2]
[396494360,1765003841067,-1264.12,0.00010958,2]
[396494361,1765003841077,-500.0,0.00010958,2]
[396494362,1765003841086,-862.14,0.00010958,2]
[396494363,1765003841095,-500.0,0.00010958,2]
[396494364,1765003841104,-500.0,0.00010958,2]
[396494366,1765003841114,-500.0,0.00010958,2]
[396494368,1765003841123,-500.0,0.00010958,2]
[396494370,1765003841132,-1608.35,0.00010958,2]
[396494371,1765003841141,-500.0,0.00010958,2]
[396494373,1765003841150,-500.0,0.00010958,2]
[396494375,1765003841163,-500.0,0.00010958,2]
[396494377,1765003841173,-500.0,0.00010958,2]
[396494378,1765003841182,-500.0,0.00010958,2]
[396494379,1765003841190,-500.0,0.00010958,2]
[396494380,1765003841202,-785.16,0.00010958,2]
[396494381,1765003841211,-1431.09,0.00010958,2]
[396494382,1765003841221,-500.0,0.00010958,2]
[396494383,1765003841231,-500.0,0.00010958,2]
[396494384,1765003841240,-1473.58,0.00010958,2]
[396494385,1765003841250,-1379.19,0.00010958,2]
[396494386,1765003841259,-711.13,0.00010958,2]
[396494387,1765003841268,-500.0,0.00010958,2]
[396494388,1765003841278,-500.0,0.00010958,2]
[396494389,1765003841287,-500.0,0.00010958,2]
[396494390,1765003841296,-502.15075821,0.00010958,2]
[396494391,1765003841307,-577.54,0.00010958,2]
[396494392,1765003841317,-500.0,0.00010958,2]
[396494393,1765003841326,-681.99,0.00010958,2]
[396494394,1765003841335,-500.0,0.00010958,2]
[396494395,1765003841344,-500.0,0.00010958,2]
[396494396,1765003841353,-500.0,0.00010958,2]
[396494397,1765003841362,-500.0,0.00010958,2]
[396494398,1765003841372,-500.0,0.00010958,2]
[396494399,1765003841383,-500.0,0.00010958,2]
[396494400,1765003841393,-831.87,0.00010958,2]
[396494401,1765003841404,-755.42,0.00010958,2]
[396494402,1765003841415,-500.0,0.00010958,2]
[396494403,1765003841426,-500.0,0.00010958,2]
[396494404,1765003841437,-500.0,0.00010958,2]
[396494405,1765003841447,-500.0,0.00010958,2]
[396494406,1765003841457,-1402.0,0.00010958,2]
[396494407,1765003841467,-500.0,0.00010958,2]
[396494408,1765003841477,-500.0,0.00010958,2]
[396494409,1765003841487,-500.0,0.00010958,2]
[396494410,1765003841498,-500.0,0.00010958,2]
[396494411,1765003841508,-3476.2,0.00010958,2]
[396494412,1765003841519,-500.0,0.00010958,2]
[396494413,1765003841528,-500.0,0.00010958,2]
[396494414,1765003841537,-500.0,0.00010958,2]
[396494415,1765003841550,-500.0,0.00010958,2]
[396494416,1765003841560,-687.83,0.00010958,2]
[396494417,1765003841711,-857.78,0.00010958,2]
[396494418,1765003841721,-500.0,0.00010958,2]
[396494419,1765003841730,-500.0,0.00010958,2]
[396494420,1765003841739,-500.0,0.00010958,2]
[396494421,1765003841748,-500.0,0.00010958,2]
[396494422,1765003841758,-712.93,0.00010958,2]
[396494423,1765003841767,-1093.47,0.00010958,2]
[396494424,1765003841776,-2869.5,0.00010958,2]
[396494425,1765003841786,-500.0,0.00010958,2]
[396494426,1765003841795,-889.89,0.00010958,2]
[396494427,1765003841805,-500.0,0.00010958,2]
[396494428,1765003841814,-500.0,0.00010958,2]
[396494429,1765003841823,-500.0,0.00010958,2]
[396494430,1765003841833,-517.77,0.00010958,2]
[396494431,1765003841844,-500.0,0.00010958,2]
[396494432,1765003841854,-500.0,0.00010958,2]
[396494433,1765003841864,-500.0,0.00010958,2]
[396494434,1765003841874,-1141.36,0.00010958,2]
[396494435,1765003841883,-707.53,0.00010958,2]
[396494436,1765003841892,-500.0,0.00010958,2]
[396494437,1765003841901,-500.0,0.00010958,2]
[396494438,1765003841910,-566.08,0.00010958,2]
[396494439,1765003841919,-949.77,0.00010958,2]
[396494440,1765003841929,-500.0,0.00010958,2]
[396494441,1765003841939,-634.47,0.00010958,2]
[396494442,1765003841948,-500.0,0.00010958,2]
[396494443,1765003841959,-500.0,0.00010958,2]
[396494444,1765003841968,-500.0,0.00010958,2]
[396494445,1765003841977,-1386.86,0.00010958,2]
[396494446,1765003841986,-500.0,0.00010958,2]
[396494447,1765003841995,-500.0,0.00010958,2]
[396494448,1765003842004,-500.0,0.00010958,2]
[396494449,1765003842014,-730.83,0.00010958,2]
[396494450,1765003842024,-2346.31,0.00010958,2]
[396494451,1765003842033,-500.0,0.00010958,2]
[396494452,1765003842042,-500.0,0.00010958,2]
[396494453,1765003842051,-236.64108559,0.00010958,2]
[396494454,1765003842062,-500.0,0.00010958,2]
[396494455,1765003842073,-500.0,0.00010958,2]
[396494456,1765003842083,-520.34,0.00010958,2]
[396494457,1765003842093,-500.0,0.00010958,2]
[396494458,1765003842103,-500.0,0.00010958,2]
[396494459,1765003842114,-500.0,0.00010958,2]
[396494460,1765003842123,-825.13,0.00010958,2]
[396494461,1765003842134,-507.38864264,0.00010958,2]
[396494462,1765003842143,-500.0,0.00010958,2]
[396494463,1765003842155,-500.0,0.00010958,2]
[396494464,1765003842168,-500.0,0.00010958,2]
[396494465,1765003842178,-659.96,0.00010958,2]
[396494466,1765003842188,-500.0,0.00010958,2]
[396494467,1765003842199,-500.0,0.00010958,2]
[396494468,1765003842209,-500.0,0.00010958,2]
[396494469,1765003842219,-500.0,0.00010958,2]
[396494470,1765003842229,-500.0,0.00010958,2]
[396494471,1765003842238,-500.0,0.00010958,2]
[396494472,1765003842247,-898.8,0.00010958,2]
[396494473,1765003842256,-500.0,0.00010958,2]
[396494474,1765003842265,-500.0,0.00010958,2]
[396494475,1765003842275,-3193.12,0.00010958,2]
[396494476,1765003842286,-500.0,0.00010958,2]
[396494477,1765003842296,-640.27348072,0.00010958,2]
[396494478,1765003842306,-500.0,0.00010958,2]
[396494479,1765003842316,-500.0,0.00010958,2]
[396494480,1765003842329,-500.0,0.00010958,2]
[396494481,1765003842339,-500.0,0.00010958,2]
[396494482,1765003842349,-500.0,0.00010958,2]
[396494483,1765003842359,-500.0,0.00010958,2]
[396494484,1765003842370,-500.0,0.00010958,2]
[396494485,1765003842380,-500.0,0.00010958,2]
[396494486,1765003842391,-500.0,0.00010958,2]
[396494487,1765003842400,-500.0,0.00010958,2]
[396494488,1765003842409,-500.0,0.00010958,2]
[396494489,1765003842418,-500.0,0.00010958,2]
[396494490,1765003842427,-1030.44,0.00010958,2]
[396494491,1765003842436,-500.0,0.00010958,2]
[396494492,1765003842446,-500.0,0.00010958,2]
[396494493,1765003842455,-500.0,0.00010958,2]
[396494494,1765003842464,-519.7,0.00010958,2]
[396494495,1765003842474,-500.0,0.00010958,2]
[396494496,1765003842486,-500.0,0.00010958,2]
[396494497,1765003842495,-652.56,0.00010958,2]
[396494498,1765003842504,-500.0,0.00010958,2]
[396494499,1765003842513,-500.0,0.00010958,2]
[396494500,1765003842523,-724.94,0.00010958,2]
[396494501,1765003842532,-504.86560774,0.00010958,2]
[396494502,1765003842541,-2447.83,0.00010958,2]
[396494503,1765003842550,-500.0,0.00010958,2]
[396494504,1765003842559,-500.0,0.00010958,2]
[396494505,1765003842569,-500.0,0.00010958,2]
[396494506,1765003842578,-500.0,0.00010958,2]
[396494507,1765003842587,-537.99,0.00010958,2]
[396494508,1765003842596,-779.75,0.00010958,2]
[396494509,1765003842605,-510.02,0.00010958,2]
[396494510,1765003842614,-756.91,0.00010958,2]
[396494511,1765003842623,-798.03,0.00010958,2]
[396494512,1765003842633,-500.0,0.00010958,2]
[396494513,1765003842642,-500.0,0.00010958,2]
[396494514,1765003842651,-500.0,0.00010958,2]
[396494515,1765003842661,-946.24,0.00010958,2]
[396494516,1765003842671,-500.0,0.00010958,2]
[396494517,1765003842680,-500.0,0.00010958,2]
[396494518,1765003842690,-500.0,0.00010958,2]
[396494519,1765003842699,-500.0,0.00010958,2]
[396494520,1765003842708,-500.0,0.00010958,2]
[396494521,1765003842717,-1127.11,0.00010958,2]
[396494522,1765003842727,-500.0,0.00010958,2]
[396494523,1765003842736,-500.0,0.00010958,2]
[396494524,1765003842745,-500.0,0.00010958,2]
[396494525,1765003842755,-843.99,0.00010958,2]
[396494526,1765003842764,-700.05,0.00010958,2]
[396494527,1765003842774,-500.0,0.00010958,2]
[396494528,1765003842783,-500.0,0.00010958,2]
[396494529,1765003842793,-500.0,0.00010958,2]
[396494530,1765003842802,-500.0,0.00010958,2]
[396494531,1765003842811,-744.0,0.00010958,2]
[396494532,1765003842821,-2087.49,0.00010958,2]
[396494533,1765003842831,-3089.2,0.00010958,2]
[396494534,1765003842841,-500.0,0.00010958,2]
[396494535,1765003842850,-500.0,0.00010958,2]
[396494536,1765003842860,-500.0,0.00010958,2]
[396494537,1765003842870,-500.0,0.00010958,2]
[396494538,1765003842879,-712.78,0.00010958,2]
[396494539,1765003842889,-500.0,0.00010958,2]
[396494540,1765003842898,-1102.57,0.00010958,2]
[396494541,1765003842907,-1093.4,0.00010958,2]
[396494542,1765003842916,-1674.79,0.00010958,2]
[396494543,1765003842926,-500.0,0.00010958,2]
[396494544,1765003842935,-500.0,0.00010958,2]
[396494545,1765003842944,-1150.66,0.00010958,2]
[396494546,1765003842953,-500.0,0.00010958,2]
[396494547,1765003842963,-500.01775472,0.00010958,2]
[396494548,1765003842972,-500.0,0.00010958,2]
[396494549,1765003842981,-500.0,0.00010958,2]
[396494550,1765003842990,-500.0,0.00010958,2]
[396494551,1765003842999,-634.73,0.00010958,2]
[396494552,1765003843009,-500.0,0.00010958,2]